{"text_format":"1","workbook":"xlsx","n_sheets":4,"sheets":["LISTA","Hoja1","Hoja2","carr"],"not_rendered":{"charts":0,"images":0,"macros":1,"external_links":0,"defined_names":0,"comments":0,"pivot_tables":0},"unopened":[],"bounds":{"document_bytes":16777216,"sheet_cells":100000,"rows_first":2000,"rows_last":500,"rows_between":2000,"halvings":0,"cell_chars":16384,"cell_head_chars":4096},"cells_cut":0,"cells_raw":0,"read":"whole","date_system":"1900"}

{"sheet":"LISTA","index":0,"n_rows":56,"n_cols":7,"rows_kept":56,"cut":false,"hidden":false,"merged":[]}
[1,"VENTANA",912]
[2,"SILLA",65]
[3,"SACO",64]
[4,"PUERTA",901]
[5,"PLANCHA",928]
[6,"PIEDRA",910]
[7,"PEZ",96]
[8,"PESCADO",9641]
[9,"PERIODICO",9014]
[10,"PERA",90]
[11,"PATATA",911]
[12,"PAPEL",995]
[13,"NARANJA",2027]
[14,"MESA",36]
[15,"LUNA",52]
[16,"LLAVE",59]
[17,"LIMON",532]
[18,"LIBRO",null,5,9,0]
[19,"LAPIZ",null,5,9]
[20,"LAMPARA",null,5,3,9,0]
[21,"JAMON",null,null,3,2]
[22,"HARINA"]
[23,"FOTOGRAFIA"]
[24,"FOTO"]
[25,"FLOR"]
[26,"ESTRELLA"]
[27,"DISCO"]
[28,"COCHE"]
[29,"CEBOLLA"]
[30,"CARRO"]
[31,"CARRITO"]
[32,"CABALLO"]
[33,"BUTACA"]
[34,"BOMBILLA"]
[35,"BLOC"]
[36,"BEBE"]
[37,"BARCA"]
[38,"BALON"]
[39,"ARBOL"]
[40,"ANILLO"]
[41,123]
[42,88]
[43,50]
[44,25]
[45,18]
[46,14]
[47,12]
[48,"CAMISA"]
[49,"BOTON"]
[50,"AZUCAR"]
[51,"SAL"]
[52,"PIMIENTO"]
[53,"RUEDA"]
[54,"PALILLO"]
[55,"CORTINA"]
[56,33]

{"sheet":"Hoja1","index":1,"n_rows":9,"n_cols":13,"rows_kept":9,"cut":false,"hidden":false,"merged":[[1,5,1,8]]}
[null,null,null,null,null,null,null,null,null,null,null,null,{"$f":"RANDBETWEEN(1,56)","v":14}]
[null,null,null,null,null,"joannostro.com"]
[null,null,null,null,null,null,null,null,"OBJETOS"]
[{"$f":"VLOOKUP($K$4,LISTA!A1:B56,2,FALSE)","v":"CAMISA"},null,null,null,null,{"$f":"A4","v":"CAMISA"},null,null,null,null,48]
[{"$f":"VLOOKUP($K$5,LISTA!A1:B56,2,FALSE)","v":"LAMPARA"},null,null,null,null,{"$f":"A5","v":"LAMPARA"},null,null,null,null,20]
[{"$f":"VLOOKUP($K$6,LISTA!A1:B56,2,FALSE)","v":"CABALLO"},null,null,null,null,{"$f":"A6","v":"CABALLO"},null,null,null,null,32]
[{"$f":"VLOOKUP($K$7,LISTA!A1:C56,2,FALSE)","v":"RUEDA"},null,null,null,null,{"$f":"A7","v":"RUEDA"},null,null,null,null,53]
[{"$f":"VLOOKUP($K$8,LISTA!A1:C56,2,FALSE)","v":"FOTO"},null,null,null,null,null,null,null,null,null,24]
[{"$f":"VLOOKUP($K$9,LISTA!A1:C56,2,FALSE)","v":"BALON"},null,null,null,null,null,null,null,null,null,38]

{"sheet":"Hoja2","index":2,"n_rows":9,"n_cols":5,"rows_kept":9,"cut":false,"hidden":false,"merged":[[8,4,8,6]]}
[]
[]
[]
[]
[]
[]
[]
[]
[null,null,null,null,"el tiempo de leer esto y pulsar botón"]

{"sheet":"carr","index":3,"n_rows":9,"n_cols":7,"rows_kept":9,"cut":false,"hidden":false,"merged":[]}
[]
[null,null,null,null,null,{"$f":"COUNTA(Hoja1!F4:F12)","v":4}]
[]
[{"$f":"VLOOKUP(Hoja1!K4,LISTA!A1:B56,2,FALSE)","v":"CAMISA"},"bien",null,null,null,null,{"$f":"VLOOKUP(F4,A4:B9,2,FALSE)","v":{"$error":"#N/A"}}]
[{"$f":"VLOOKUP(Hoja1!K5,LISTA!A1:B56,2,FALSE)","v":"LAMPARA"},"bien",null,null,null,null,{"$f":"VLOOKUP(F5,A4:B9,2,FALSE)","v":{"$error":"#N/A"}}]
[{"$f":"VLOOKUP(Hoja1!K6,LISTA!A1:B56,2,FALSE)","v":"CABALLO"},"bien",null,null,null,null,{"$f":"VLOOKUP(F6,A4:B9,2,FALSE)","v":{"$error":"#N/A"}}]
[{"$f":"VLOOKUP(Hoja1!K7,LISTA!A1:B56,2,FALSE)","v":"RUEDA"},"bien",null,null,null,null,{"$f":"VLOOKUP(F7,A4:B9,2,FALSE)","v":{"$error":"#N/A"}}]
[{"$f":"VLOOKUP(Hoja1!K8,LISTA!A1:B56,2,FALSE)","v":"FOTO"},"bien",null,null,null,null,{"$f":"VLOOKUP(F8,A4:B9,2,FALSE)","v":{"$error":"#N/A"}}]
[{"$f":"VLOOKUP(Hoja1!K9,LISTA!A1:B56,2,FALSE)","v":"BALON"},"bien",null,null,null,null,{"$f":"VLOOKUP(F9,A5:A6:B10,2,FALSE)","v":{"$error":"#N/A"}}]